bitfinex-derivatives/quotes_BTCF0:USTF0_20250709
["timestamp","ask_amount","ask_price","bid_price","bid_amount"]
[1752061266509,0.00013758,109040.0,109030.0,1.78242983]
[1752061268201,0.00013758,109040.0,109030.0,1.83708875]
[1752061268909,0.00013758,109040.0,109030.0,2.02051275]
[1752061269605,0.00013758,109040.0,109030.0,2.08371275]
[1752061270306,0.00013758,109040.0,109030.0,2.02905383]
[1752061272814,0.00013758,109040.0,109030.0,1.84562983]
[1752061273014,0.00013758,109040.0,109030.0,2.02905383]
[1752061273214,0.00013758,109040.0,109030.0,2.04271856]
[1752061273409,0.00013758,109040.0,109030.0,1.79289292]
[1752061273714,0.00013758,109040.0,109030.0,2.04271856]
[1752061274115,0.00013758,109040.0,109030.0,2.1247043]
[1752061275615,0.00013758,109040.0,109030.0,1.9412803]
[1752061275914,0.00013758,109040.0,109030.0,1.69145466]
[1752061276108,0.00013758,109040.0,109030.0,1.9412803]
[1752061277811,0.64572,109060.0,109030.0,2.07004538]
[1752061278119,0.70602,109060.0,109040.0,0.76865103]
[1752061278306,0.70602,109060.0,109040.0,1.12865103]
[1752061278721,0.0603,109060.0,109040.0,1.12865103]
[1752061278918,0.0603,109060.0,109050.0,0.40191088]
[1752061279107,0.0603,109060.0,109050.0,0.43301088]
[1752061280119,0.31012564,109060.0,109050.0,0.43301088]
[1752061280319,0.0603,109060.0,109050.0,0.43301088]
[1752061280508,0.31012564,109060.0,109050.0,0.43301088]
[1752061280820,0.31012564,109060.0,109050.0,0.54494088]
[1752061281119,0.31312564,109060.0,109050.0,0.51384088]
[1752061281919,0.033,109060.0,109050.0,1.09366652]
[1752061282116,0.003,109060.0,109050.0,1.85656103]
[1752061282723,0.003,109060.0,109050.0,2.33065353]
[1752061282920,0.003,109060.0,109050.0,2.02601338]
[1752061283321,0.003,109060.0,109050.0,2.08079901]
[1752061283623,0.003,109060.0,109050.0,1.89740701]
[1752061286419,0.003,109060.0,109050.0,2.14723265]
[1752061286626,0.005,109060.0,109050.0,2.14723265]
[1752061286822,0.005,109060.0,109050.0,1.89740701]
[1752061287012,0.005,109060.0,109050.0,2.14723265]
[1752061287217,0.005,109060.0,109050.0,2.09244702]
[1752061287423,0.005,109060.0,109050.0,1.84262138]
[1752061288226,0.005,109060.0,109050.0,1.89738729]
[1752061288524,0.005,109060.0,109050.0,2.14721293]
[1752061289121,0.005,109060.0,109050.0,1.89738729]
[1752061293530,0.005,109060.0,109050.0,1.64756165]
[1752061293724,0.005,109060.0,109050.0,1.89738729]
[1752061294530,0.005,109060.0,109050.0,2.14721293]
[1752061294730,0.005,109060.0,109050.0,2.06522719]
[1752061296235,0.005,109060.0,109050.0,1.81540155]
[1752061296741,0.005,109060.0,109050.0,2.24861919]
[1752061297035,0.067,109080.0,109050.0,2.27583902]
[1752061297236,0.067,109080.0,109070.0,0.61062564]
[1752061297536,0.067,109080.0,109070.0,1.58302564]
[1752061297741,0.067,109080.0,109070.0,1.62407319]
[1752061299726,0.067,109080.0,109070.0,1.68927319]
[1752061300636,0.067,109080.0,109070.0,1.80120319]
[1752061307237,0.067,109080.0,109070.0,1.15545755]
[1752061307534,0.067,109080.0,109070.0,1.15529755]
[1752061308340,0.067,109080.0,109070.0,1.11425]
[1752061309034,0.067,109080.0,109070.0,0.47373]
[1752061309237,0.067,109080.0,109070.0,1.11421]
[1752061309437,0.067,109080.0,109070.0,1.15525755]
[1752061310142,0.067,109080.0,109070.0,1.15501755]
[1752061311739,0.067,109080.0,109070.0,1.15506247]
[1752061312441,0.067,109080.0,109070.0,0.51482247]
[1752061312641,0.067,109080.0,109070.0,1.15486247]
[1752061316850,0.31676874,109080.0,109070.0,1.40463121]
[1752061318455,0.31676874,109080.0,109070.0,1.50025455]
[1752061319655,0.31676874,109080.0,109070.0,1.87025455]
[1752061319852,0.31676874,109080.0,109070.0,1.50025455]
[1752061322464,0.31676874,109080.0,109070.0,1.83025455]
[1752061322660,0.31676874,109080.0,109070.0,1.86155455]
[1752061323369,0.31676874,109080.0,109070.0,1.89405455]
[1752061323769,0.31676874,109080.0,109070.0,1.31428581]
[1752061323976,0.31676874,109080.0,109070.0,1.89405455]
[1752061324264,0.067,109080.0,109070.0,0.59226007]
[1752061324453,0.31676874,109080.0,109070.0,1.48010881]
[1752061326570,0.56653748,109080.0,109070.0,1.16642007]
[1752061326769,0.56653748,109080.0,109070.0,1.20745732]
[1752061327462,0.56653748,109080.0,109070.0,1.16630007]
[1752061327658,0.56653748,109080.0,109070.0,0.80550007]
[1752061327869,0.56653748,109080.0,109070.0,0.84666291]
[1752061328871,0.56653748,109080.0,109070.0,0.80550007]
[1752061329369,0.56653748,109080.0,109070.0,0.84665674]
[1752061330271,0.56653748,109080.0,109070.0,0.20781674]
[1752061331971,0.56653748,109080.0,109070.0,0.45758548]
[1752061332172,0.31676874,109080.0,109070.0,0.45758548]
[1752061333073,0.56653748,109080.0,109070.0,0.45758548]
[1752061333665,0.067,109080.0,109070.0,0.45758548]
[1752061333873,0.56653748,109080.0,109070.0,0.45758548]
[1752061334069,0.31676874,109080.0,109070.0,0.45758548]
[1752061335667,0.56653748,109080.0,109070.0,0.45758548]
[1752061339176,0.56653748,109080.0,109070.0,0.20781674]
[1752061339378,0.56653748,109080.0,109070.0,0.45758548]
[1752061340176,0.56653748,109080.0,109070.0,0.20781674]
[1752061340377,0.56653748,109080.0,109070.0,0.45758548]
[1752061342282,0.56653748,109080.0,109070.0,0.20781674]
[1752061342580,0.56653748,109080.0,109070.0,0.45758548]
[1752061343682,0.56653748,109080.0,109070.0,0.15308667]
[1752061343875,0.56653748,109080.0,109070.0,0.40285541]
[1752061345378,0.56653748,109080.0,109070.0,0.15308667]
[1752061345683,0.56653748,109080.0,109070.0,0.40285541]
[1752061346284,1.20289748,109080.0,109070.0,0.40285541]
[1752061347072,1.20289748,109080.0,109070.0,0.15308667]
[1752061349281,1.20289748,109080.0,109070.0,0.20781674]
[1752061349487,1.20289748,109080.0,109070.0,0.15308667]
[1752061350480,1.20289748,109080.0,109070.0,0.20781674]
[1752061353596,0.067,109080.0,109070.0,0.45758548]
[1752061353783,0.95280874,109080.0,109070.0,0.52208548]
[1752061353984,0.95280874,109080.0,109070.0,0.48092881]
[1752061354889,0.95280874,109080.0,109070.0,0.48192881]
[1752061355091,0.70292,109080.0,109070.0,1.19272881]
[1752061355395,0.88768874,109080.0,109070.0,1.27471455]
[1752061355694,0.88768874,109080.0,109070.0,1.27371455]
[1752061355900,0.88768874,109080.0,109070.0,1.19172881]
[1752061357896,0.88768874,109080.0,109070.0,1.19372881]
[1752061358297,0.88768874,109080.0,109070.0,1.23489547]
[1752061360394,0.88768874,109080.0,109070.0,0.65512673]
[1752061360599,1.19875748,109080.0,109070.0,0.20782673]
[1752061360801,1.19875748,109080.0,109070.0,0.15309666]
[1752061361103,1.19875748,109080.0,109070.0,0.20782673]
[1752061361298,1.19875748,109080.0,109070.0,0.15309666]
[1752061362695,0.69922,109080.0,109070.0,0.4028654]
[1752061362901,0.94898874,109080.0,109070.0,0.4028654]
[1752061363400,1.19875748,109080.0,109070.0,0.4028654]
[1752061363607,0.94898874,109080.0,109070.0,0.4028654]
[1752061364696,0.94898874,109080.0,109070.0,0.40286617]
[1752061366698,0.94898874,109080.0,109070.0,0.45759624]
[1752061367202,0.94898874,109080.0,109070.0,0.2078275]
[1752061367397,0.94898874,109080.0,109070.0,0.45759624]
[1752061367597,1.19875748,109080.0,109070.0,0.45759624]
[1752061368404,1.19875748,109080.0,109070.0,0.16666007]
[1752061368607,1.19875748,109080.0,109070.0,0.41642881]
[1752061370609,1.19875748,109080.0,109070.0,0.16666007]
[1752061370810,1.19875748,109080.0,109070.0,0.41642881]
[1752061372912,1.19875748,109080.0,109070.0,0.16666007]
[1752061373114,1.19875748,109080.0,109070.0,0.41642881]
[1752061374313,1.19875748,109080.0,109070.0,1.14722881]
[1752061374515,1.19875748,109080.0,109070.0,1.22921455]
[1752061375716,0.94898874,109080.0,109070.0,1.22921455]
[1752061376103,0.94898874,109080.0,109070.0,1.29091455]
[1752061376308,0.002,109080.0,109070.0,1.29091455]
[1752061376504,0.88748874,109080.0,109070.0,1.29091455]
[1752061378623,0.002,109080.0,109070.0,1.29091455]
[1752061378816,0.002,109080.0,109070.0,1.54068329]
[1752061379216,0.002,109080.0,109070.0,1.48595322]
[1752061380009,0.002,109080.0,109070.0,1.5132818]
[1752061380422,0.002,109080.0,109070.0,1.5162818]
[1752061380923,0.002,109080.0,109070.0,1.26643413]
[1752061381113,0.002,109080.0,109070.0,1.26843413]
[1752061381517,0.002,109080.0,109070.0,1.62923413]
[1752061382220,0.002,109080.0,109070.0,1.51991981]
[1752061383324,0.002,109080.0,109070.0,1.52892235]
[1752061384016,0.002,109080.0,109070.0,1.61116883]
[1752061390018,0.002,109080.0,109070.0,1.66596727]
[1752061393022,0.002,109080.0,109070.0,1.61116883]
[1752061393917,0.002,109080.0,109070.0,1.35247648]
[1752061394123,0.002,109080.0,109070.0,1.65696134]
[1752061395028,0.002,109080.0,109070.0,1.60216629]
[1752061395530,0.002,109080.0,109070.0,1.60116629]
[1752061396031,0.002,109080.0,109070.0,1.61032133]
[1752061396918,0.002,109080.0,109070.0,1.61132133]
[1752061398426,0.002,109080.0,109070.0,1.624978]
[1752061399234,0.002,109080.0,109070.0,1.37528819]
[1752061399530,0.002,109080.0,109070.0,1.624978]
[1752061400423,0.002,109080.0,109070.0,1.58387665]
[1752061400732,0.002,109080.0,109070.0,1.62498358]
[1752061400933,0.002,109080.0,109070.0,1.58387665]
[1752061402931,0.002,109080.0,109070.0,1.66614792]
[1752061408638,0.002,109080.0,109070.0,1.63841396]
[1752061408837,0.002,109080.0,109070.0,1.52909964]
[1752061409030,0.002,109080.0,109070.0,1.61142411]
[1752061411138,0.002,109080.0,109070.0,1.62890683]
[1752061411940,0.002,109080.0,109070.0,1.37919223]
[1752061412140,0.002,109080.0,109070.0,1.62890683]
[1752061414248,0.002,109080.0,109070.0,1.54658236]
[1752061414939,0.002,109080.0,109070.0,1.29698309]
[1752061415140,0.002,109080.0,109070.0,1.54669769]
[1752061417440,0.002,109080.0,109070.0,1.18589769]
[1752061417642,0.002,109080.0,109070.0,1.54669769]
[1752061418446,0.002,109080.0,109070.0,1.65601201]
[1752061420345,0.002,109080.0,109070.0,1.54669769]
[1752061423966,0.002,109080.0,109070.0,1.65601201]
[1752061427062,0.002,109080.0,109070.0,1.90572661]
[1752061429964,0.002,109080.0,109070.0,1.88812856]
[1752061435476,0.002,109080.0,109070.0,1.88512856]
[1752061435677,0.002,109080.0,109070.0,1.88812856]
[1752061436579,0.002,109090.0,109070.0,1.88812856]
[1752061436778,0.002,109090.0,109080.0,1.64016312]
[1752061436978,0.002,109090.0,109080.0,2.01016312]
[1752061437177,0.002,109090.0,109080.0,2.03716352]
[1752061437481,0.2517146,109120.0,109080.0,2.28687812]
[1752061437684,0.0626,109110.0,109100.0,0.30454462]
[1752061437876,0.0626,109110.0,109100.0,1.68046462]
[1752061438277,0.0307,109110.0,109100.0,2.10376462]
[1752061438779,0.0307,109110.0,109100.0,2.35347922]
[1752061439279,0.002,109110.0,109100.0,2.43572426]
[1752061440278,0.002,109110.0,109100.0,2.54765426]
[1752061441478,0.002,109110.0,109100.0,2.55660121]
[1752061441678,0.002,109110.0,109100.0,2.54765426]
[1752061443181,0.002,109110.0,109100.0,2.46540922]
[1752061443382,0.004,109110.0,109100.0,2.54765426]
[1752061444384,0.004,109110.0,109100.0,2.46540922]
[1752061446179,0.004,109110.0,109100.0,2.5064183]
[1752061446484,0.004,109110.0,109100.0,2.46540922]
[1752061446688,0.004,109110.0,109100.0,2.50641811]
[1752061446886,0.004,109110.0,109100.0,2.46540922]
[1752061447186,0.004,109110.0,109100.0,2.50641281]
[1752061448591,0.004,109110.0,109100.0,2.4105792]
[1752061448975,0.004,109110.0,109100.0,2.45158279]
[1752061449180,0.004,109110.0,109100.0,2.4105792]
[1752061449389,0.004,109110.0,109100.0,2.45158279]
[1752061452087,0.004,109110.0,109100.0,2.70129739]
[1752061452391,0.004,109110.0,109100.0,2.50641281]
[1752061458597,0.004,109110.0,109100.0,2.49282424]
[1752061464197,0.002,109120.0,109100.0,2.74253884]
[1752061464389,0.002,109120.0,109110.0,1.61130322]
[1752061464589,0.002,109120.0,109110.0,1.96130322]
[1752061464789,0.002,109120.0,109110.0,1.71158862]
[1752061464985,0.002,109120.0,109110.0,1.96130322]
[1752061465197,0.002,109120.0,109110.0,2.15547826]
[1752061465698,0.004,109120.0,109110.0,2.15547826]
[1752061467001,0.005,109120.0,109110.0,2.15547826]
[1752061467201,0.005,109120.0,109110.0,2.10078424]
[1752061467903,0.006,109120.0,109110.0,2.10078424]
[1752061468497,0.0716,109120.0,109110.0,2.10078424]
[1752061469695,0.006,109120.0,109110.0,2.10078424]
[1752061472104,0.004,109120.0,109110.0,2.10270167]
[1752061474010,0.002,109120.0,109110.0,2.10270167]
[1752061474216,0.002,109120.0,109110.0,2.10470167]
[1752061474402,0.002,109120.0,109110.0,1.60527247]
[1752061474602,0.002,109120.0,109110.0,2.10470167]
[1752061477612,0.0655,109130.0,109110.0,2.13185352]
[1752061477808,0.0655,109130.0,109120.0,0.9972501]
[1752061478001,0.0655,109130.0,109120.0,1.3783501]
[1752061478406,0.0655,109130.0,109120.0,1.32354174]
[1752061479312,0.0655,109130.0,109120.0,1.32454174]
[1752061480209,0.0655,109130.0,109120.0,1.43647174]
[1752061481710,0.0655,109130.0,109120.0,1.46687174]
[1752061488503,0.0655,109130.0,109120.0,1.43942789]
[1752061495828,0.0655,109130.0,109120.0,1.80022789]
[1752061498523,0.0655,109130.0,109120.0,1.82767174]
[1752061504434,0.0435,109130.0,109120.0,1.82767174]
[1752061504635,0.0326,109130.0,109120.0,1.82767174]
[1752061505339,0.0326,109130.0,109120.0,1.32824254]
[1752061505532,0.0326,109130.0,109120.0,1.82767174]
[1752061506736,0.32395538,109140.0,109120.0,1.82767174]
[1752061506932,0.35675538,109140.0,109130.0,1.29877102]
[1752061507137,0.35675538,109140.0,109130.0,1.62877102]
[1752061507840,0.38735538,109140.0,109130.0,1.62877102]
[1752061508138,0.38735538,109140.0,109130.0,1.71098356]
[1752061509639,0.38835538,109140.0,109130.0,1.71098356]
[1752061510136,0.38835538,109140.0,109130.0,1.82291356]
[1752061510943,0.13864078,109140.0,109130.0,1.82291356]
[1752061511138,0.38835538,109140.0,109130.0,1.82291356]
[1752061511643,0.38835538,109140.0,109130.0,1.57319896]
[1752061511838,0.38835538,109140.0,109130.0,1.82291356]
[1752061512236,0.3141146,109140.0,109130.0,1.82291356]
[1752061512638,0.3141146,109140.0,109130.0,1.85571356]
[1752061514251,0.0644,109140.0,109130.0,1.85571356]
[1752061514444,0.3141146,109140.0,109130.0,1.85571356]
[1752061516450,0.0644,109140.0,109130.0,1.85571356]
[1752061516652,0.3141146,109140.0,109130.0,1.85571356]
[1752061516951,0.0644,109140.0,109130.0,1.77350102]
[1752061517538,0.0338,109140.0,109130.0,1.77350102]
[1752061518248,0.001,109140.0,109130.0,2.02321562]
[1752061518442,0.001,109140.0,109130.0,2.05371562]
[1752061519146,0.001,109140.0,109130.0,1.85371562]
[1752061519345,0.001,109140.0,109130.0,1.93592816]
[1752061520049,0.0665,109160.0,109130.0,1.96400427]
[1752061520347,0.0665,109160.0,109150.0,0.6105146]
[1752061520543,0.3162146,109160.0,109150.0,1.5735546]
[1752061520745,0.3162146,109160.0,109150.0,1.6056546]
[1752061521343,0.0665,109160.0,109150.0,1.6056546]
[1752061521850,0.0675,109160.0,109150.0,1.6056546]
[1752061522050,0.0675,109160.0,109150.0,1.35594]
[1752061522246,0.0675,109160.0,109150.0,1.6056546]
[1752061522446,0.3172146,109160.0,109150.0,1.6056546]
[1752061522647,0.0675,109160.0,109150.0,1.6056546]
[1752061522847,0.3172146,109160.0,109150.0,1.6056546]
[1752061523048,0.39071047,109160.0,109150.0,1.6056546]
[1752061523353,0.14099587,109160.0,109150.0,1.6056546]
[1752061523543,0.38971047,109160.0,109150.0,1.6056546]
[1752061523739,0.0695,109160.0,109150.0,1.6056546]
[1752061524144,0.3192146,109160.0,109150.0,1.6056546]
[1752061524549,0.005,109160.0,109150.0,1.6056546]
[1752061524747,0.2547146,109160.0,109150.0,1.3081546]
[1752061524951,0.2873146,109160.0,109150.0,1.3081546]
[1752061525255,0.0376,109160.0,109150.0,1.7900846]
[1752061526547,0.0376,109160.0,109150.0,1.83118878]
[1752061529850,0.0376,109160.0,109150.0,1.58147418]
[1752061529851,0.2873146,109160.0,109150.0,1.58147418]
[1752061530154,0.2873146,109160.0,109150.0,1.83118878]
[1752061533550,0.0376,109160.0,109150.0,1.83118878]
[1752061533756,0.2873146,109160.0,109150.0,1.83118878]
[1752061534360,0.0376,109160.0,109150.0,1.83118878]
[1752061536351,0.2873146,109160.0,109150.0,1.83118878]
[1752061537267,0.2547146,109160.0,109150.0,1.83118878]
[1752061538154,0.005,109160.0,109150.0,2.08090338]
[1752061538660,0.005,109160.0,109150.0,2.0397992]
[1752061539364,0.003,109160.0,109150.0,2.0397992]
[1752061539655,0.003,109160.0,109150.0,1.4067592]
[1752061539866,0.04829924,109170.0,109150.0,3.32377798]
[1752061540161,0.04829924,109170.0,109160.0,0.8602292]
[1752061540354,0.04829924,109170.0,109160.0,1.2822292]
[1752061540962,0.04829924,109170.0,109160.0,1.32333338]
[1752061541558,0.04829924,109170.0,109160.0,1.39545483]
[1752061542252,0.04829924,109170.0,109160.0,1.41470824]
[1752061543359,0.04829924,109170.0,109160.0,1.34258679]
[1752061543555,0.04829924,109170.0,109160.0,0.98178679]
[1752061543761,0.04829924,109170.0,109160.0,1.34258679]
[1752061544261,0.04829924,109170.0,109160.0,1.34358679]
[1752061545162,0.04829924,109170.0,109160.0,1.41441261]
[1752061545364,0.04829924,109170.0,109160.0,1.45551679]
[1752061545761,0.04829924,109170.0,109160.0,1.45546582]
[1752061546766,0.04829924,109170.0,109160.0,1.52867412]
[1752061547465,0.04829924,109170.0,109160.0,1.52967412]
[1752061555776,0.04829924,109170.0,109160.0,1.58447969]
[1752061556069,0.04829924,109170.0,109160.0,2.16203412]
[1752061556465,0.40338669,109190.0,109160.0,1.77938872]
[1752061556662,0.04258669,109190.0,109180.0,0.8602292]
[1752061556871,0.04258669,109190.0,109180.0,1.2202292]
[1752061557066,0.04258669,109190.0,109180.0,1.2824292]
[1752061558879,0.04258669,109190.0,109180.0,1.9147892]
[1752061559179,0.29230129,109190.0,109180.0,1.2419946]
[1752061559370,0.10598669,109190.0,109180.0,1.2419946]
[1752061559570,0.35570129,109190.0,109180.0,1.2419946]
[1752061559874,0.10598669,109190.0,109180.0,1.35308]
[1752061560068,0.35570129,109190.0,109180.0,1.6027946]
[1752061560377,0.35570129,109190.0,109180.0,1.7147246]
[1752061560570,0.35570129,109190.0,109180.0,1.3539246]
[1752061560878,0.10598669,109190.0,109180.0,0.72120769]
[1752061561270,0.10598669,109190.0,109180.0,1.35348769]
[1752061561979,0.10798669,109190.0,109180.0,1.35348769]
[1752061562373,0.10798669,109190.0,109180.0,1.10421]
[1752061562575,0.10798669,109190.0,109180.0,1.35348769]
[1752061563474,0.10798669,109190.0,109180.0,0.72120769]
[1752061563684,0.10798669,109190.0,109180.0,1.35344769]
[1752061564781,0.10798669,109190.0,109180.0,1.40529089]
[1752061565671,0.10798669,109190.0,109180.0,0.77305089]
[1752061565981,0.10798669,109190.0,109180.0,1.40529089]
[1752061567181,0.10798669,109190.0,109180.0,1.39455187]
[1752061568681,0.71806438,109190.0,109180.0,0.15303418]
[1752061568978,0.71806438,109190.0,109180.0,0.11193]
[1752061569372,0.71806438,109190.0,109180.0,0.15303418]
[1752061569577,0.71806438,109190.0,109180.0,0.11193]
[1752061570385,0.90124038,109190.0,109180.0,0.04449319]
[1752061570681,0.83433484,109190.0,109180.0,0.04449319]
[1752061570885,1.00124038,109190.0,109180.0,0.04449319]
[1752061571680,1.08361253,109190.0,109180.0,0.04449319]
[1752061576384,0.83433484,109190.0,109180.0,0.04449319]
[1752061576689,1.08361253,109190.0,109180.0,0.04449319]
[1752061579687,0.90043653,109190.0,109180.0,0.04449319]
[1752061581884,0.65115884,109190.0,109180.0,0.04449319]
[1752061582084,0.90043653,109190.0,109180.0,0.04449319]
[1752061582285,0.80043653,109190.0,109180.0,0.04449319]
[1752061587296,0.48775884,109190.0,109180.0,0.64377088]
[1752061587484,0.67674669,109190.0,109180.0,0.66967088]
[1752061587783,0.04458669,109190.0,109180.0,0.66967088]
[1752061587988,0.67674669,109190.0,109180.0,0.66967088]
[1752061588189,0.04458669,109190.0,109180.0,0.66967088]
[1752061588679,0.04258669,109190.0,109180.0,0.71069527]
[1752061590188,0.04258669,109190.0,109180.0,1.09049633]
[1752061590591,0.04258669,109190.0,109180.0,1.10123473]
[1752061591795,0.04258669,109190.0,109180.0,1.10123483]
[1752061593595,0.04258669,109190.0,109180.0,0.85195714]
[1752061593794,0.29186438,109190.0,109180.0,0.85195714]
[1752061594293,0.29186438,109190.0,109180.0,0.14013275]
[1752061595187,0.04258669,109190.0,109180.0,0.14013275]
[1752061595388,0.04258669,109190.0,109180.0,0.47013275]
[1752061595588,0.04258669,109190.0,109180.0,0.14013275]
[1752061596896,0.04258669,109190.0,109180.0,0.17037716]
[1752061597497,0.65266438,109190.0,109180.0,0.11039319]
[1752061597894,0.68546438,109190.0,109180.0,0.11039319]
[1752061598397,0.68546438,109190.0,109180.0,0.43039319]
[1752061598593,0.43618669,109190.0,109180.0,0.11039319]
[1752061598800,0.65266438,109190.0,109180.0,0.11039319]
[1752061602698,0.65266438,109190.0,109180.0,0.12113263]
[1752061603199,0.40338669,109190.0,109180.0,0.37041032]
[1752061603700,0.04258669,109190.0,109180.0,0.37041032]
[1752061604600,0.04258669,109190.0,109180.0,0.71041032]
[1752061605100,0.04258669,109190.0,109180.0,0.37041032]
[1752061606106,0.04258669,109190.0,109180.0,0.35967088]
[1752061606488,0.40338669,109190.0,109180.0,0.35967088]
[1752061611207,0.40338669,109190.0,109180.0,0.40065379]
[1752061614704,0.04258669,109190.0,109180.0,0.40065379]
[1752061615805,0.04258669,109190.0,109180.0,0.73065379]
[1752061616309,0.67454669,109190.0,109180.0,0.73065379]
[1752061618814,0.04258669,109190.0,109180.0,0.73065379]
[1752061619017,0.70694669,109190.0,109180.0,0.73065379]
[1752061619201,0.70694669,109190.0,109180.0,1.10219282]
[1752061619701,0.70694669,109190.0,109180.0,0.73065379]
[1752061620010,0.67454669,109190.0,109180.0,0.73065379]
[1752061620500,0.70694669,109190.0,109180.0,0.73065379]
[1752061620822,0.70694669,109190.0,109180.0,0.69785379]
[1752061621108,0.73834669,109190.0,109180.0,0.4485761]
[1752061621602,0.98762438,109190.0,109180.0,0.4485761]
[1752061622197,0.98762438,109190.0,109180.0,0.50338167]
[1752061622704,0.98762438,109190.0,109180.0,0.4485761]
[1752061622911,0.98762438,109190.0,109180.0,0.45931522]
[1752061623410,0.98762438,109190.0,109180.0,0.4485761]
[1752061623910,0.98762438,109190.0,109180.0,0.45931539]
[1752061624119,0.98762438,109190.0,109180.0,0.4485761]
[1752061624313,0.98762438,109190.0,109180.0,0.4593154]
[1752061624910,0.98762438,109190.0,109180.0,0.4485761]
[1752061625306,0.73834669,109190.0,109180.0,0.4485761]
[1752061625506,0.98762438,109190.0,109180.0,0.4485761]
[1752061625815,1.34842438,109190.0,109180.0,0.4593154]
[1752061626005,1.34842438,109190.0,109180.0,0.4485761]
[1752061626311,1.09914669,109190.0,109180.0,0.4485761]
[1752061626510,1.34842438,109190.0,109180.0,0.4485761]
[1752061628213,1.34842438,109190.0,109180.0,0.45931565]
[1752061628509,1.43079653,109190.0,109180.0,0.41833274]
[1752061628806,1.06999653,109190.0,109180.0,0.42165291]
[1752061629704,1.43079653,109190.0,109180.0,0.42165291]
[1752061630207,1.43115653,109190.0,109180.0,0.42165291]
[1752061632102,1.18187884,109190.0,109180.0,0.42165291]
[1752061632302,1.34878438,109190.0,109180.0,0.43239246]
[1752061633112,1.09950669,109190.0,109180.0,0.43239246]
[1752061633310,1.34878438,109190.0,109180.0,0.43239246]
[1752061636217,1.4311703,109190.0,109180.0,0.67094437]
[1752061637308,1.18187884,109190.0,109180.0,0.67094437]
[1752061637508,1.4311703,109190.0,109180.0,0.67094437]
[1752061638113,1.4311703,109190.0,109180.0,0.42165291]
[1752061638518,1.4311703,109190.0,109180.0,0.71192728]
[1752061638719,1.34879815,109190.0,109180.0,0.71192728]
[1752061639126,1.09950669,109190.0,109180.0,0.71192728]
[1752061639316,1.34879815,109190.0,109180.0,0.71192728]
[1752061642622,1.34879815,109190.0,109180.0,0.67094437]
[1752061643321,1.09950669,109190.0,109180.0,0.67094437]
[1752061643522,1.34879815,109190.0,109180.0,0.67094437]
[1752061644029,1.34879815,109190.0,109180.0,0.71204194]
[1752061644326,1.09950669,109190.0,109180.0,0.71204194]
[1752061644625,1.34879815,109190.0,109180.0,0.71204194]
[1752061645423,1.34879815,109190.0,109180.0,0.46275048]
[1752061645622,1.34879815,109190.0,109180.0,0.71204194]
[1752061646124,1.34879815,109190.0,109180.0,0.72278149]
[1752061646827,0.71647815,109190.0,109180.0,0.72278149]
[1752061647024,0.98763815,109190.0,109180.0,0.72278149]
[1752061647525,1.34843815,109190.0,109180.0,0.97207295]
[1752061647725,1.31703815,109190.0,109180.0,1.00447295]
[1752061648318,1.31703815,109190.0,109180.0,0.50589003]
[1752061648519,1.31703815,109190.0,109180.0,1.00447295]
[1752061648520,1.06774669,109190.0,109180.0,1.00447295]
[1752061648719,1.31703815,109190.0,109180.0,0.99041307]
[1752061650728,1.31703815,109190.0,109180.0,0.74112161]
[1752061652430,1.31703815,109190.0,109180.0,0.73038222]
[1752061653932,1.31703815,109190.0,109180.0,0.74112161]
[1752061654137,0.68507815,109190.0,109180.0,0.74112161]
[1752061654434,1.31699815,109190.0,109180.0,0.74112161]
[1752061654627,0.68507815,109190.0,109180.0,0.74112161]
[1752061654828,1.31695815,109190.0,109180.0,0.74112161]
[1752061655128,0.95615815,109190.0,109180.0,0.73038222]
[1752061655328,1.31695815,109190.0,109180.0,0.73038222]
[1752061656028,0.68507815,109190.0,109180.0,0.73038222]
[1752061656327,1.31695815,109190.0,109180.0,0.73038222]
[1752061657835,0.43578669,109190.0,109180.0,0.73038222]
[1752061658030,1.31695815,109190.0,109180.0,0.73038222]
[1752061658534,1.31695815,109190.0,109180.0,0.78517899]
[1752061659938,1.31695815,109190.0,109180.0,0.50348753]
[1752061660137,1.34875815,109190.0,109180.0,0.69798222]
[1752061660737,1.34875815,109190.0,109180.0,0.44869076]
[1752061660936,1.34875815,109190.0,109180.0,0.69798222]
[1752061662535,0.98795815,109190.0,109180.0,0.69798222]
[1752061662737,1.34875815,109190.0,109180.0,0.69798222]
[1752061663441,1.34875815,109190.0,109180.0,0.44869076]
[1752061663630,1.34875815,109190.0,109180.0,0.69798222]
[1752061664240,1.09946669,109190.0,109180.0,0.69798222]
[1752061664440,1.34875815,109190.0,109180.0,0.69798222]
[1752061664737,1.34875815,109190.0,109180.0,0.44869076]
[1752061664943,1.34875815,109190.0,109180.0,0.69798222]
[1752061665137,1.09946669,109190.0,109180.0,0.69798222]
[1752061665342,0.98795815,109190.0,109180.0,0.69798222]
[1752061665737,0.73866669,109190.0,109180.0,0.69798222]
[1752061665943,0.98795815,109190.0,109180.0,0.69798222]
[1752061666245,0.73866669,109190.0,109180.0,0.69798222]
[1752061666542,0.98795815,109190.0,109180.0,0.69798222]
[1752061668540,0.98795815,109190.0,109180.0,0.65688465]
[1752061668741,0.67446669,109190.0,109180.0,0.90617611]
[1752061668945,0.29187815,109190.0,109180.0,0.68838465]
[1752061669246,0.92367815,109190.0,109180.0,0.93767611]
[1752061669446,0.94656815,109190.0,109180.0,0.93767611]
[1752061670147,1.0290297,109190.0,109180.0,0.43909319]
[1752061670346,1.0290297,109190.0,109180.0,0.68838465]
[1752061673044,1.0930897,109190.0,109180.0,0.68838465]
[1752061673437,1.0930897,109190.0,109180.0,0.43909319]
[1752061673641,1.0930897,109190.0,109180.0,0.68838465]
[1752061674647,1.4538897,109190.0,109180.0,0.43909319]
[1752061674846,1.4538897,109190.0,109180.0,0.68838465]
[1752061675042,1.4852897,109190.0,109180.0,0.68838465]
[1752061675444,1.23599824,109190.0,109180.0,0.68838465]
[1752061675651,1.4852897,109190.0,109180.0,0.68838465]
[1752061677465,1.23599824,109190.0,109180.0,0.68838465]
[1752061677761,1.4852897,109190.0,109180.0,0.68838465]
[1752061678259,1.4852897,109190.0,109180.0,0.43909319]
[1752061678454,1.4852897,109190.0,109180.0,0.68838465]
[1752061678655,1.40282815,109190.0,109180.0,0.72948222]
[1752061680967,1.04202815,109190.0,109180.0,0.72948222]
[1752061682564,0.41026815,109190.0,109180.0,0.72948222]
[1752061682862,1.04194815,109190.0,109180.0,0.72948222]
[1752061685665,1.04194815,109190.0,109180.0,0.47948222]
[1752061685865,1.04194815,109190.0,109180.0,0.76948222]
[1752061686664,1.01054815,109190.0,109180.0,0.76948222]
[1752061687273,0.76125669,109190.0,109180.0,0.76948222]